[Event "*** Titled Tuesday Blitz"]
[Site "Chess.com"]
[Date "2020.11.10"]
[Round "6"]
[White "julinha97"]
[Black "A-S-00"]
[Result "0-1"]
[WhiteElo "2173"]
[BlackElo "2350"]
[TimeControl "180+1"]
[EndTime "11:10:03 PST"]
[Termination "A-S-00 won by resignation"]

1. e4 {[%clk 0:03:00.9]} 1... c5 {[%clk 0:02:57.5]} 2. Nf3 {[%clk 0:03:00.9]}
2... g6 {[%clk 0:02:57.1]} 3. d4 {[%clk 0:03:00.4]} 3... cxd4 {[%clk 0:02:57.2]}
4. Nxd4 {[%clk 0:03:01.3]} 4... Bg7 {[%clk 0:02:56.2]} 5. c4 {[%clk 0:03:01.6]}
5... Nc6 {[%clk 0:02:55.4]} 6. Be3 {[%clk 0:03:01.2]} 6... Nf6 {[%clk 0:02:53]}
7. Nc3 {[%clk 0:03:01.7]} 7... d6 {[%clk 0:02:53.2]} 8. Be2 {[%clk 0:03:01.5]}
8... O-O {[%clk 0:02:51.4]} 9. O-O {[%clk 0:03:02]} 9... Bd7 {[%clk 0:02:51.5]}
10. h3 {[%clk 0:03:02]} 10... Rc8 {[%clk 0:02:51.1]} 11. Nc2 {[%clk 0:02:22.3]}
11... Ne5 {[%clk 0:02:37]} 12. b3 {[%clk 0:02:18.8]} 12... a6 {[%clk 0:02:36.3]}
13. f4 {[%clk 0:02:18.3]} 13... Nc6 {[%clk 0:02:34.2]} 14. Rc1 {[%clk
0:02:15.4]} 14... Nh5 {[%clk 0:02:28.7]} 15. Nd5 {[%clk 0:02:12.8]} 15... Ng3
{[%clk 0:02:27.3]} 16. Re1 {[%clk 0:02:08.2]} 16... Nxe2+ {[%clk 0:02:26.6]} 17.
Qxe2 {[%clk 0:02:09.1]} 17... e6 {[%clk 0:02:19.9]} 18. Nb6 {[%clk 0:02:04.5]}
18... Rb8 {[%clk 0:02:18.7]} 19. Red1 {[%clk 0:02:04.5]} 19... Qe7 {[%clk
0:02:17]} 20. c5 {[%clk 0:02:00]} 20... d5 {[%clk 0:02:04.5]} 21. exd5 {[%clk
0:01:59]} 21... exd5 {[%clk 0:02:03.9]} 22. Nxd5 {[%clk 0:01:57.9]} 22... Qe4
{[%clk 0:01:50.7]} 23. Qf2 {[%clk 0:01:43.4]} 23... Be6 {[%clk 0:01:31.6]} 24.
Nb6 {[%clk 0:01:39.2]} 24... Rbd8 {[%clk 0:01:29.4]} 25. Ne1 {[%clk 0:01:30.8]}
25... Nd4 {[%clk 0:01:13.5]} 26. Kh2 {[%clk 0:01:10.7]} 26... Nf5 {[%clk
0:01:11.8]} 27. Bd2 {[%clk 0:00:52.8]} 27... Bb2 {[%clk 0:01:00.8]} 28. Rc2
{[%clk 0:00:46.7]} 28... Bd4 {[%clk 0:00:40.5]} 29. Qf3 {[%clk 0:00:46.7]} 29...
Qxf3 {[%clk 0:00:40.1]} 30. Nxf3 {[%clk 0:00:47.6]} 30... Ne3 {[%clk 0:00:29.2]}
31. Bxe3 {[%clk 0:00:47.6]} 31... Bxe3 {[%clk 0:00:29.2]} 32. Rxd8 {[%clk
0:00:48.3]} 32... Rxd8 {[%clk 0:00:27.8]} 33. Kg3 {[%clk 0:00:48.2]} 33... h5
{[%clk 0:00:26.7]} 34. Ne5 {[%clk 0:00:45.1]} 34... Bf5 {[%clk 0:00:23.5]} 35.
Re2 {[%clk 0:00:43.3]} 35... Bxc5 {[%clk 0:00:22.5]} 36. Nbc4 {[%clk 0:00:43.4]}
36... b5 {[%clk 0:00:21.7]} 37. Ne3 {[%clk 0:00:43.4]} 37... Be6 {[%clk
0:00:20.2]} 38. Kf3 {[%clk 0:00:37.7]} 38... Kg7 {[%clk 0:00:20]} 39. g4 {[%clk
0:00:37]} 39... hxg4+ {[%clk 0:00:19.5]} 40. hxg4 {[%clk 0:00:37.9]} 40... f6
{[%clk 0:00:19.8]} 41. Nc6 {[%clk 0:00:36.7]} 41... Rd3 {[%clk 0:00:19.6]} 42.
b4 {[%clk 0:00:32.2]} 42... Bd5+ {[%clk 0:00:18.5]} 43. Kf2 {[%clk 0:00:24.3]}
43... Bxe3+ {[%clk 0:00:18.6]} 44. Ke1 {[%clk 0:00:24.2]} 44... Bxc6 {[%clk
0:00:17.6]} 45. Rc2 {[%clk 0:00:25.1]} 45... Bf3 {[%clk 0:00:17.1]} 46. Rc7+
{[%clk 0:00:26]} 46... Kh6 {[%clk 0:00:17.1]} 47. g5+ {[%clk 0:00:25.6]} 47...
fxg5 {[%clk 0:00:16.8]} 48. fxg5+ {[%clk 0:00:26.5]} 48... Kxg5 {[%clk
0:00:16.9]} 0-1

[Event "*** Titled Tuesday Blitz"]
[Site "Chess.com"]
[Date "2020.11.10"]
[Round "6"]
[White "Fortitudine"]
[Black "Beltraxtor"]
[Result "1-0"]
[WhiteElo "2310"]
[BlackElo "2545"]
[TimeControl "180+1"]
[EndTime "11:10:04 PST"]
[Termination "Fortitudine won on time"]

1. c4 {[%clk 0:03:00.9]} 1... c6 {[%clk 0:02:56.9]} 2. g3 {[%clk 0:03:00.1]}
2... d5 {[%clk 0:02:56]} 3. Nf3 {[%clk 0:02:59.9]} 3... Nf6 {[%clk 0:02:56]} 4.
Bg2 {[%clk 0:02:59.6]} 4... dxc4 {[%clk 0:02:56.4]} 5. Na3 {[%clk 0:02:43.2]}
5... Qd5 {[%clk 0:02:46.9]} 6. Qc2 {[%clk 0:02:34.7]} 6... Bf5 {[%clk
0:02:31.1]} 7. Qxc4 {[%clk 0:02:31.1]} 7... e6 {[%clk 0:02:31.4]} 8. O-O {[%clk
0:02:10.2]} 8... Bxa3 {[%clk 0:02:01.6]} 9. Qxd5 {[%clk 0:02:10]} 9... exd5
{[%clk 0:01:58.5]} 10. bxa3 {[%clk 0:02:09.9]} 10... Nbd7 {[%clk 0:01:59.1]} 11.
d3 {[%clk 0:02:08.9]} 11... O-O {[%clk 0:01:50.1]} 12. Nd4 {[%clk 0:02:04.5]}
12... Bg6 {[%clk 0:01:44.4]} 13. Rb1 {[%clk 0:01:43.1]} 13... Nc5 {[%clk
0:01:30.4]} 14. Be3 {[%clk 0:01:29.6]} 14... Rfe8 {[%clk 0:01:27.4]} 15. Rfc1
{[%clk 0:01:19.5]} 15... Nfd7 {[%clk 0:01:16.8]} 16. Bh3 {[%clk 0:01:14]} 16...
b6 {[%clk 0:00:33.4]} 17. Nxc6 {[%clk 0:01:05.2]} 17... Ne5 {[%clk 0:00:23.7]}
18. Nxe5 {[%clk 0:01:00.5]} 18... Rxe5 {[%clk 0:00:22.9]} 19. d4 {[%clk
0:00:31.3]} 19... Bxb1 {[%clk 0:00:23.8]} 20. dxe5 {[%clk 0:00:30.8]} 20... Bxa2
{[%clk 0:00:21.4]} 21. Bxc5 {[%clk 0:00:29.6]} 21... bxc5 {[%clk 0:00:20.3]} 22.
Rxc5 {[%clk 0:00:30.1]} 22... Bc4 {[%clk 0:00:20.6]} 23. e4 {[%clk 0:00:28.2]}
23... Rd8 {[%clk 0:00:20.7]} 24. exd5 {[%clk 0:00:27.8]} 24... Bxd5 {[%clk
0:00:20.8]} 25. Rc8 {[%clk 0:00:25.3]} 25... Rxc8 {[%clk 0:00:20.7]} 26. Bxc8
{[%clk 0:00:26.2]} 26... Kf8 {[%clk 0:00:19.4]} 27. f4 {[%clk 0:00:26.3]} 27...
Ke7 {[%clk 0:00:18.8]} 28. Kf2 {[%clk 0:00:26.9]} 28... f6 {[%clk 0:00:18.2]}
29. exf6+ {[%clk 0:00:26.5]} 29... Kxf6 {[%clk 0:00:18]} 30. Ke3 {[%clk
0:00:26.8]} 30... g5 {[%clk 0:00:18]} 31. fxg5+ {[%clk 0:00:26.3]} 31... Kxg5
{[%clk 0:00:18.3]} 32. h4+ {[%clk 0:00:26.7]} 32... Kf6 {[%clk 0:00:17.4]} 33.
Kf4 {[%clk 0:00:26]} 33... h6 {[%clk 0:00:17.4]} 34. g4 {[%clk 0:00:25.1]} 34...
Bc6 {[%clk 0:00:16.6]} 35. g5+ {[%clk 0:00:25]} 35... hxg5+ {[%clk 0:00:16.2]}
36. hxg5+ {[%clk 0:00:25.9]} 36... Kg6 {[%clk 0:00:15.2]} 37. Bf5+ {[%clk
0:00:25.9]} 37... Kh5 {[%clk 0:00:15.3]} 38. g6 {[%clk 0:00:24.9]} 38... Kh6
{[%clk 0:00:15.2]} 39. Ke5 {[%clk 0:00:24.9]} 39... Be8 {[%clk 0:00:12.8]} 40.
Kf6 {[%clk 0:00:24.8]} 40... Ba4 {[%clk 0:00:01.4]} 41. Be6 {[%clk 0:00:21.3]}
1-0

[Event "*** Titled Tuesday Blitz"]
[Site "Chess.com"]
[Date "2020.11.10"]
[Round "6"]
[White "maximnovik"]
[Black "Andrii_Prydun"]
[Result "1-0"]
[WhiteElo "2522"]
[BlackElo "2351"]
[TimeControl "180+1"]
[EndTime "11:10:04 PST"]
[Termination "maximnovik won by resignation"]

1. d4 {[%clk 0:02:33.9]} 1... d5 {[%clk 0:03:00.3]} 2. c4 {[%clk 0:02:33.2]}
2... c6 {[%clk 0:03:01]} 3. Nc3 {[%clk 0:02:33.6]} 3... Nf6 {[%clk 0:03:01.7]}
4. Bf4 {[%clk 0:02:34.2]} 4... e6 {[%clk 0:02:58.9]} 5. e3 {[%clk 0:02:34.6]}
5... Nbd7 {[%clk 0:02:58.9]} 6. Qc2 {[%clk 0:02:31.6]} 6... Be7 {[%clk
0:02:59.2]} 7. cxd5 {[%clk 0:02:29.1]} 7... exd5 {[%clk 0:02:58.6]} 8. Bd3
{[%clk 0:02:28.9]} 8... Nh5 {[%clk 0:02:57.9]} 9. Nge2 {[%clk 0:02:28.2]} 9...
Nxf4 {[%clk 0:02:57.8]} 10. Nxf4 {[%clk 0:02:28.1]} 10... h6 {[%clk 0:02:57.9]}
11. O-O-O {[%clk 0:02:27.3]} 11... Nf8 {[%clk 0:02:55.4]} 12. h3 {[%clk
0:02:22.7]} 12... Bd7 {[%clk 0:02:49.2]} 13. Kb1 {[%clk 0:02:22.5]} 13... Qa5
{[%clk 0:02:46.4]} 14. Rc1 {[%clk 0:02:19.4]} 14... Ne6 {[%clk 0:02:45.2]} 15.
Nxe6 {[%clk 0:02:11.9]} 15... Bxe6 {[%clk 0:02:46.1]} 16. Bf5 {[%clk 0:02:11.8]}
16... Bxf5 {[%clk 0:02:24.8]} 17. Qxf5 {[%clk 0:02:10.3]} 17... Rd8 {[%clk
0:02:25.4]} 18. g4 {[%clk 0:02:04.4]} 18... Qa6 {[%clk 0:01:39.9]} 19. h4 {[%clk
0:02:02.5]} 19... g6 {[%clk 0:01:35.9]} 20. Qc2 {[%clk 0:02:01.1]} 20... Qc4
{[%clk 0:01:34.6]} 21. h5 {[%clk 0:02:00.2]} 21... g5 {[%clk 0:01:33.1]} 22. Qd2
{[%clk 0:01:48.3]} 22... Qb4 {[%clk 0:01:32.2]} 23. Qd3 {[%clk 0:01:46.5]} 23...
Kf8 {[%clk 0:01:30.5]} 24. Ne2 {[%clk 0:01:45.2]} 24... Bd6 {[%clk 0:01:25.2]}
25. f4 {[%clk 0:01:45]} 25... gxf4 {[%clk 0:01:22.1]} 26. exf4 {[%clk
0:01:39.4]} 26... Re8 {[%clk 0:01:21.8]} 27. Rc2 {[%clk 0:01:36.5]} 27... Re4
{[%clk 0:01:20.5]} 28. g5 {[%clk 0:01:32.6]} 28... Bxf4 {[%clk 0:00:56.8]} 29.
g6 {[%clk 0:01:28.2]} 29... fxg6 {[%clk 0:00:40.4]} 30. a3 {[%clk 0:01:15]}
30... Qe7 {[%clk 0:00:37.9]} 31. Nxf4 {[%clk 0:01:01.3]} 31... Rxf4 {[%clk
0:00:38.8]} 32. Qxg6 {[%clk 0:01:00.3]} 32... Rf6 {[%clk 0:00:33.4]} 33. Qg4
{[%clk 0:00:58.3]} 33... Qe6 {[%clk 0:00:32.8]} 34. Qg3 {[%clk 0:00:57.3]} 34...
Qd6 {[%clk 0:00:33]} 35. Qg2 {[%clk 0:00:52.7]} 35... Rg8 {[%clk 0:00:22.9]} 36.
Qe2 {[%clk 0:00:45.4]} 36... Qe6 {[%clk 0:00:18.7]} 37. Qh2 {[%clk 0:00:44.5]}
37... Qd6 {[%clk 0:00:17.5]} 38. Qh4 {[%clk 0:00:43.5]} 38... Qf4 {[%clk
0:00:15.4]} 39. Qe1 {[%clk 0:00:39.7]} 39... Qe4 {[%clk 0:00:15.6]} 40. Qb4+
{[%clk 0:00:38.5]} 40... Ke8 {[%clk 0:00:14]} 41. Re1 {[%clk 0:00:38.8]} 41...
Rg1 {[%clk 0:00:04.5]} 42. Rxg1 {[%clk 0:00:37.4]} 42... Rf2 {[%clk 0:00:04.8]}
43. Rc1 {[%clk 0:00:30]} 43... a5 {[%clk 0:00:03.5]} 44. Qxb7 {[%clk 0:00:28.7]}
44... Qd3 {[%clk 0:00:02.1]} 45. Qxc6+ {[%clk 0:00:28.1]} 1-0

[Event "*** Titled Tuesday Blitz"]
[Site "Chess.com"]
[Date "2020.11.10"]
[Round "6"]
[White "alejanchess73"]
[Black "Jenia84"]
[Result "1-0"]
[WhiteElo "2463"]
[BlackElo "2315"]
[TimeControl "180+1"]
[EndTime "11:10:04 PST"]
[Termination "alejanchess73 won by resignation"]

1. d4 {[%clk 0:03:00.3]} 1... Nf6 {[%clk 0:02:59.1]} 2. c4 {[%clk 0:02:59.6]}
2... e6 {[%clk 0:02:58.7]} 3. Nc3 {[%clk 0:02:59.1]} 3... Bb4 {[%clk 0:02:58]}
4. a3 {[%clk 0:02:59.5]} 4... Bxc3+ {[%clk 0:02:52.1]} 5. bxc3 {[%clk
0:03:00.4]} 5... O-O {[%clk 0:02:49.5]} 6. f3 {[%clk 0:02:57]} 6... d6 {[%clk
0:02:43.2]} 7. e4 {[%clk 0:02:55.9]} 7... e5 {[%clk 0:02:42.7]} 8. Bd3 {[%clk
0:02:55.9]} 8... b6 {[%clk 0:02:42.1]} 9. Bg5 {[%clk 0:02:46.7]} 9... h6 {[%clk
0:02:39.2]} 10. Bh4 {[%clk 0:02:46.6]} 10... a5 {[%clk 0:02:36.9]} 11. Ne2
{[%clk 0:02:44.4]} 11... Ba6 {[%clk 0:02:35.5]} 12. O-O {[%clk 0:02:41.4]} 12...
Nbd7 {[%clk 0:02:28]} 13. Kh1 {[%clk 0:02:21.5]} 13... Re8 {[%clk 0:02:22.7]}
14. Qd2 {[%clk 0:02:15.4]} 14... Nf8 {[%clk 0:02:11.6]} 15. Bf2 {[%clk
0:01:50.5]} 15... Ng6 {[%clk 0:02:01.8]} 16. g4 {[%clk 0:01:36.7]} 16... Nh7
{[%clk 0:01:45.3]} 17. Rg1 {[%clk 0:01:31.2]} 17... Ng5 {[%clk 0:01:43.2]} 18.
Qe3 {[%clk 0:01:17.6]} 18... Qf6 {[%clk 0:01:30.1]} 19. Rg3 {[%clk 0:01:17]}
19... Nf4 {[%clk 0:00:51.8]} 20. Ng1 {[%clk 0:00:49.1]} 20... Nxd3 {[%clk
0:00:46.9]} 21. Qxd3 {[%clk 0:00:48.7]} 21... exd4 {[%clk 0:00:44.4]} 22. Bxd4
{[%clk 0:00:43.6]} 22... Qe7 {[%clk 0:00:26.8]} 23. h4 {[%clk 0:00:38.4]} 23...
Ne6 {[%clk 0:00:26.8]} 24. g5 {[%clk 0:00:38.9]} 24... hxg5 {[%clk 0:00:24.3]}
25. hxg5 {[%clk 0:00:38.7]} 25... Nxg5 {[%clk 0:00:22.7]} 26. Ra2 {[%clk
0:00:28.4]} 26... f6 {[%clk 0:00:19.5]} 27. Rag2 {[%clk 0:00:27.7]} 27... Kf7
{[%clk 0:00:18.9]} 28. Ne2 {[%clk 0:00:17.9]} 28... Rh8+ {[%clk 0:00:19.3]} 29.
Kg1 {[%clk 0:00:18.1]} 29... Ne6 {[%clk 0:00:18.7]} 30. f4 {[%clk 0:00:14.6]}
30... Rh7 {[%clk 0:00:18.4]} 31. f5 {[%clk 0:00:13]} 31... Ng5 {[%clk
0:00:15.7]} 32. Nf4 {[%clk 0:00:11.5]} 32... Qxe4 {[%clk 0:00:15.1]} 33. Qxe4
{[%clk 0:00:11.7]} 33... Nxe4 {[%clk 0:00:15.3]} 34. Re3 {[%clk 0:00:11.6]}
34... Ng5 {[%clk 0:00:11.9]} 35. Ne6 {[%clk 0:00:11.2]} 35... Bxc4 {[%clk
0:00:11.1]} 36. Nxc7 {[%clk 0:00:09.8]} 36... Rc8 {[%clk 0:00:10.3]} 37. Ne6
{[%clk 0:00:09]} 37... Nxe6 {[%clk 0:00:10]} 38. fxe6+ {[%clk 0:00:09.6]} 38...
Bxe6 {[%clk 0:00:10.5]} 39. Rge2 {[%clk 0:00:09.5]} 39... Re8 {[%clk 0:00:10.8]}
40. Bxb6 {[%clk 0:00:09]} 40... Bf5 {[%clk 0:00:10.1]} 41. Rxe8 {[%clk
0:00:08.9]} 1-0

[Event "*** Titled Tuesday Blitz"]
[Site "Chess.com"]
[Date "2020.11.10"]
[Round "6"]
[White "denispopov"]
[Black "VitaliyBernadskiy"]
[Result "1-0"]
[WhiteElo "1859"]
[BlackElo "2730"]
[TimeControl "180+1"]
[EndTime "11:10:05 PST"]
[Termination "denispopov won on time"]

1. e4 {[%clk 0:03:00.9]} 1... e5 {[%clk 0:02:57.2]} 2. Nf3 {[%clk 0:03:00.3]}
2... Nc6 {[%clk 0:02:57]} 3. Bc4 {[%clk 0:03:00.7]} 3... Bc5 {[%clk 0:02:56]} 4.
O-O {[%clk 0:03:01]} 4... d6 {[%clk 0:02:54.5]} 5. c3 {[%clk 0:02:53.6]} 5...
Bg4 {[%clk 0:02:49.4]} 6. h3 {[%clk 0:02:53.1]} 6... Bh5 {[%clk 0:02:48.7]} 7.
d3 {[%clk 0:02:47]} 7... Nge7 {[%clk 0:02:41.8]} 8. Qe2 {[%clk 0:02:45.6]} 8...
O-O {[%clk 0:02:38.6]} 9. a4 {[%clk 0:02:45.2]} 9... a5 {[%clk 0:02:36.2]} 10.
g4 {[%clk 0:02:43.7]} 10... Bg6 {[%clk 0:02:35.7]} 11. Bb3 {[%clk 0:02:36.1]}
11... d5 {[%clk 0:02:30.7]} 12. Nh4 {[%clk 0:02:31.2]} 12... dxe4 {[%clk
0:02:15.9]} 13. dxe4 {[%clk 0:02:32.1]} 13... Nc8 {[%clk 0:02:15.6]} 14. Nxg6
{[%clk 0:02:25.5]} 14... hxg6 {[%clk 0:02:16.5]} 15. Kg2 {[%clk 0:02:25.3]}
15... Nd6 {[%clk 0:02:15]} 16. Nd2 {[%clk 0:02:24.4]} 16... Qe7 {[%clk
0:02:04.7]} 17. Nf3 {[%clk 0:02:22.9]} 17... Kh8 {[%clk 0:02:03.1]} 18. Bg5
{[%clk 0:02:17.9]} 18... f6 {[%clk 0:02:01.6]} 19. Bd2 {[%clk 0:02:06.3]} 19...
Nd8 {[%clk 0:02:00.9]} 20. Nh4 {[%clk 0:01:54.8]} 20... Kh7 {[%clk 0:02:00.4]}
21. Rad1 {[%clk 0:01:47.7]} 21... Ne6 {[%clk 0:02:00]} 22. Nf5 {[%clk
0:01:43.6]} 22... Qe8 {[%clk 0:01:41.3]} 23. Nxd6 {[%clk 0:01:39.6]} 23... cxd6
{[%clk 0:01:38.2]} 24. Bc1 {[%clk 0:01:36.1]} 24... g5 {[%clk 0:01:34.9]} 25.
Rh1 {[%clk 0:01:31.1]} 25... Nf4+ {[%clk 0:01:34]} 26. Bxf4 {[%clk 0:01:30.2]}
26... gxf4 {[%clk 0:01:33.9]} 27. h4 {[%clk 0:01:23.3]} 27... Rb8 {[%clk
0:01:33]} 28. Qb5 {[%clk 0:01:15]} 28... Qg6 {[%clk 0:01:20.7]} 29. f3 {[%clk
0:01:14.3]} 29... Kh8 {[%clk 0:01:02.4]} 30. Qxa5 {[%clk 0:00:58.4]} 30... Qe8
{[%clk 0:00:46.6]} 31. Qb5 {[%clk 0:00:57.7]} 31... Qe7 {[%clk 0:00:28.1]} 32.
Qc4 {[%clk 0:00:52.3]} 32... Rbe8 {[%clk 0:00:26.1]} 33. Qd5 {[%clk 0:00:48.9]}
33... Qc7 {[%clk 0:00:25.3]} 34. Ra1 {[%clk 0:00:42.3]} 34... Ba7 {[%clk
0:00:23.5]} 35. a5 {[%clk 0:00:41.6]} 35... Rc8 {[%clk 0:00:20.4]} 36. Ra4
{[%clk 0:00:36.6]} 36... Bc5 {[%clk 0:00:19.3]} 37. Qe6 {[%clk 0:00:35.3]} 37...
Ra8 {[%clk 0:00:18.6]} 38. Qf5 {[%clk 0:00:34.2]} 38... g6 {[%clk 0:00:03.6]}
39. Qxg6 {[%clk 0:00:34.1]} 39... Qh7 {[%clk 0:00:04]} 40. Qxh7+ {[%clk
0:00:31.8]} 40... Kxh7 {[%clk 0:00:04.9]} 41. Bd5 {[%clk 0:00:30.7]} 41... Ra7
{[%clk 0:00:03.6]} 42. b4 {[%clk 0:00:30.5]} 42... b5 {[%clk 0:00:04.5]} 43. Ra2
{[%clk 0:00:25.7]} 1-0

[Event "*** Titled Tuesday Blitz"]
[Site "Chess.com"]
[Date "2020.11.10"]
[Round "6"]
[White "Grieve72"]
[Black "SlavenPastar"]
[Result "1-0"]
[WhiteElo "2379"]
[BlackElo "2520"]
[TimeControl "180+1"]
[EndTime "11:10:08 PST"]
[Termination "Grieve72 won on time"]

1. d4 {[%clk 0:03:00.9]} 1... b6 {[%clk 0:03:00.8]} 2. e4 {[%clk 0:02:55.8]}
2... Bb7 {[%clk 0:03:01.3]} 3. Nc3 {[%clk 0:02:56]} 3... e6 {[%clk 0:03:01.6]}
4. Nf3 {[%clk 0:02:52.5]} 4... Bb4 {[%clk 0:03:00.6]} 5. Bd3 {[%clk 0:02:50.5]}
5... Nf6 {[%clk 0:03:01.1]} 6. Qe2 {[%clk 0:02:47.7]} 6... d5 {[%clk 0:02:59.9]}
7. e5 {[%clk 0:02:47.4]} 7... Ne4 {[%clk 0:02:59.7]} 8. Bd2 {[%clk 0:02:47.4]}
8... Nxd2 {[%clk 0:02:59]} 9. Qxd2 {[%clk 0:02:44.3]} 9... c5 {[%clk 0:02:59.3]}
10. O-O {[%clk 0:02:35.1]} 10... c4 {[%clk 0:02:55.8]} 11. Be2 {[%clk
0:02:34.3]} 11... Nc6 {[%clk 0:02:53.4]} 12. Qf4 {[%clk 0:02:27.4]} 12... Bxc3
{[%clk 0:02:52.5]} 13. bxc3 {[%clk 0:02:27.7]} 13... Ne7 {[%clk 0:02:47.7]} 14.
Ng5 {[%clk 0:02:13.7]} 14... O-O {[%clk 0:02:39.6]} 15. g3 {[%clk 0:02:02.8]}
15... Bc6 {[%clk 0:02:23.1]} 16. h4 {[%clk 0:01:49.3]} 16... Ba4 {[%clk
0:02:19.3]} 17. Rac1 {[%clk 0:01:43.6]} 17... Nf5 {[%clk 0:02:02.6]} 18. Kg2
{[%clk 0:01:37.8]} 18... h6 {[%clk 0:02:01.9]} 19. Nf3 {[%clk 0:01:37.2]} 19...
Ne7 {[%clk 0:01:57.3]} 20. g4 {[%clk 0:01:26.8]} 20... f5 {[%clk 0:01:48.6]} 21.
exf6 {[%clk 0:01:25.9]} 21... Ng6 {[%clk 0:01:39.5]} 22. Qe3 {[%clk 0:00:50.9]}
22... Qxf6 {[%clk 0:01:39.1]} 23. Kg3 {[%clk 0:00:51.3]} 23... Rae8 {[%clk
0:01:30.7]} 24. h5 {[%clk 0:00:51.5]} 24... Nf4 {[%clk 0:01:29]} 25. Ne5 {[%clk
0:00:49.3]} 25... Qg5 {[%clk 0:01:15.2]} 26. Rh1 {[%clk 0:00:38.3]} 26... Re7
{[%clk 0:00:37.5]} 27. Bd1 {[%clk 0:00:37.3]} 27... Ree8 {[%clk 0:00:19.8]} 28.
Rb1 {[%clk 0:00:37.1]} 28... Qe7 {[%clk 0:00:10.8]} 29. Rb4 {[%clk 0:00:30]}
29... Bd7 {[%clk 0:00:09.2]} 30. Re1 {[%clk 0:00:28.1]} 30... Bc8 {[%clk
0:00:08.9]} 31. Qd2 {[%clk 0:00:18.9]} 31... Qg5 {[%clk 0:00:08.7]} 32. Qe3
{[%clk 0:00:13.3]} 32... Nxh5+ {[%clk 0:00:08.4]} 33. Kg2 {[%clk 0:00:10.8]}
33... Nf4+ {[%clk 0:00:08]} 34. Kg3 {[%clk 0:00:11.2]} 34... h5 {[%clk
0:00:04.6]} 35. Rh1 {[%clk 0:00:07.8]} 35... hxg4 {[%clk 0:00:03]} 36. Bxg4
{[%clk 0:00:08.7]} 36... Ng6 {[%clk 0:00:01.3]} 37. Qxg5 {[%clk 0:00:07.7]} 1-0

[Event "*** Titled Tuesday Blitz"]
[Site "Chess.com"]
[Date "2020.11.10"]
[Round "6"]
[White "zala02"]
[Black "Ladislav1969"]
[Result "0-1"]
[WhiteElo "2141"]
[BlackElo "2278"]
[TimeControl "180+1"]
[EndTime "11:10:08 PST"]
[Termination "Ladislav1969 won on time"]

1. d4 {[%clk 0:03:00.9]} 1... Nf6 {[%clk 0:03:00]} 2. c4 {[%clk 0:03:00.7]} 2...
g6 {[%clk 0:03:00.9]} 3. Nc3 {[%clk 0:03:00.7]} 3... d5 {[%clk 0:03:01.5]} 4.
cxd5 {[%clk 0:02:59.9]} 4... Nxd5 {[%clk 0:03:02.4]} 5. e4 {[%clk 0:03:00.3]}
5... Nxc3 {[%clk 0:03:02.8]} 6. bxc3 {[%clk 0:03:01.2]} 6... c5 {[%clk
0:03:03.4]} 7. Bc4 {[%clk 0:03:00.2]} 7... Bg7 {[%clk 0:03:03.4]} 8. Ne2 {[%clk
0:03:00.6]} 8... Nc6 {[%clk 0:03:03.2]} 9. Be3 {[%clk 0:03:00.9]} 9... O-O
{[%clk 0:03:02.3]} 10. O-O {[%clk 0:02:59.9]} 10... Bd7 {[%clk 0:03:02.1]} 11.
Rb1 {[%clk 0:02:54.8]} 11... Na5 {[%clk 0:02:57.6]} 12. Bd3 {[%clk 0:02:53.4]}
12... cxd4 {[%clk 0:02:37.6]} 13. cxd4 {[%clk 0:02:52]} 13... b6 {[%clk
0:02:38.5]} 14. Qd2 {[%clk 0:02:42.4]} 14... Rc8 {[%clk 0:02:32.4]} 15. Rfc1
{[%clk 0:02:40.7]} 15... Rxc1+ {[%clk 0:02:30.6]} 16. Rxc1 {[%clk 0:02:41.3]}
16... Bc6 {[%clk 0:02:15.7]} 17. d5 {[%clk 0:02:27.4]} 17... Ba8 {[%clk
0:02:15.3]} 18. Bb5 {[%clk 0:02:15.2]} 18... e6 {[%clk 0:02:11.5]} 19. dxe6
{[%clk 0:02:07.8]} 19... fxe6 {[%clk 0:02:08]} 20. Qxd8 {[%clk 0:01:53.6]} 20...
Rxd8 {[%clk 0:02:08.1]} 21. f3 {[%clk 0:01:54.2]} 21... Be5 {[%clk 0:01:48.4]}
22. Kf2 {[%clk 0:01:43.7]} 22... Bb7 {[%clk 0:01:45.9]} 23. f4 {[%clk
0:01:10.6]} 23... Bb8 {[%clk 0:01:44.6]} 24. e5 {[%clk 0:01:07]} 24... Kf7
{[%clk 0:01:38.7]} 25. Nd4 {[%clk 0:01:01.5]} 25... a6 {[%clk 0:01:28.7]} 26.
Be2 {[%clk 0:00:59.3]} 26... Bd5 {[%clk 0:01:22.9]} 27. Rc2 {[%clk 0:00:55]}
27... b5 {[%clk 0:01:16.1]} 28. Nf3 {[%clk 0:00:26.3]} 28... Rd7 {[%clk
0:01:09.2]} 29. Ng5+ {[%clk 0:00:24.9]} 29... Kg7 {[%clk 0:01:06]} 30. Bg4
{[%clk 0:00:24.6]} 30... Re7 {[%clk 0:01:00.6]} 31. Bc5 {[%clk 0:00:24.2]} 31...
Ba7 {[%clk 0:01:00.6]} 32. Bxa7 {[%clk 0:00:23.2]} 32... Rxa7 {[%clk 0:01:00.7]}
33. Bxe6 {[%clk 0:00:17.4]} 33... Bc4 {[%clk 0:00:52.5]} 34. Bxc4 {[%clk
0:00:15.9]} 34... Nxc4 {[%clk 0:00:52.3]} 35. Ne4 {[%clk 0:00:15.8]} 35... Rf7
{[%clk 0:00:45.5]} 36. g3 {[%clk 0:00:14.6]} 36... h6 {[%clk 0:00:34.4]} 37. Nd2
{[%clk 0:00:14]} 37... Nxe5 {[%clk 0:00:20.7]} 38. Ke2 {[%clk 0:00:06.2]} 38...
Ng4 {[%clk 0:00:18.8]} 39. h3 {[%clk 0:00:05.5]} 39... Nf6 {[%clk 0:00:16.6]}
40. Kf3 {[%clk 0:00:05]} 40... Nd5 {[%clk 0:00:15.8]} 41. Ne4 {[%clk 0:00:04.5]}
41... g5 {[%clk 0:00:14.5]} 42. Rc6 {[%clk 0:00:04.4]} 42... gxf4 {[%clk
0:00:14]} 0-1